{"text_format":"1","workbook":"xlsx","n_sheets":6,"sheets":["LOTTO N. 1","LOTTO N. 2","LOTTO N. 3","LOTTO N. 4","LOTTO N. 5","LOTTO N. 6"],"not_rendered":{"charts":0,"images":0,"macros":1,"external_links":0,"defined_names":12,"comments":0,"pivot_tables":0},"unopened":[],"bounds":{"document_bytes":16777216,"sheet_cells":100000,"rows_first":2000,"rows_last":500,"rows_between":2000,"halvings":0,"cell_chars":16384,"cell_head_chars":4096},"cells_cut":0,"cells_raw":0,"read":"whole","date_system":"1900"}

{"sheet":"LOTTO N. 1","index":0,"n_rows":42,"n_cols":8,"rows_kept":42,"cut":false,"hidden":false,"merged":[[39,1,39,2],[0,0,0,7],[2,0,2,7],[3,0,3,7],[36,0,36,1],[36,3,36,4]]}
["ALLEGATO C1"]
[]
["OFFERTA ECONOMICA RELATIVA ALL’ASTA PUBBLICA PER LA FORNITURA DI STAMPATI PER GLI UFFICI DELLA PUBBLICA AMMINISTRAZIONE"]
["LOTTO 1  -  FOGLI, BLOCCHETTI, CARTELLE, MODULI, SCHEDE, PATENTI"]
["COD.","U.O.","DESCRIZIONE","U.M.","Q.TA'\nTOTALE","PREZZO UNITARIO NETTO IN CIFRE","PREZZO UNITARIO NETTO IN LETTERE","IMPORTO\nCOMPLESSIVO\nIN CIFRE"]
["1.1","Comando Polizia Civile","Blocchetti del tipo “Verbali di Sequestro” con numerazione progressiva e copertina e sotto-blocco pesante a ribalta, formato 21x31. I blocchi devono essere da 20x4 verbali in carta chimica e cuciti in testa. Il primo verbale di accertamento dovrà avere la numerazione da concordare con l'Ufficio  richiedente (come da campione disponibile e visionabile presso la sede della stazione appaltante).","blocchetto",100,0,{"$f":"valoreinlettere(F6)","v":"zero/00"},{"$f":"E6*F6","v":0}]
["1.2","Comando Polizia Civile","Verbali di Accertamento 2021 formato 14,5x22 su carta chimica, prima copia bianca, seconda gialla. Stampa monocolore (nero) avanti e retro più numerazione progressiva con copertina e sotto-blocco pesante a ribalta, i blocchi devono essere da 20x2 verbali cuciti in testa. Il primo verbale di accertamento dovrà avere numerazione stabilita in accordo con l'Ufficio richiedente (come da campione disponibile e visionabile presso la sede della stazione appaltante).","blocchetto",400,0,{"$f":"valoreinlettere(F7)","v":"zero/00"},{"$f":"E7*F7","v":0}]
["1.3","Contabilità di Stato","Multe Gendarmeria Copertina est. azzurra - carta chimica,   Copertina post. ripiegata all’interno quantità interna n. 10x4 fogli in carta chimica colore giallo, azzurro, verde, bianco più foglio bianco  (carta non chimica) in unica copia a fine blocchetto; numerazione esterna ed numerazione interna saranno comunicate dall’ufficio richiedente al momento della messa in stampa (come da campione  disponibile e visionabile presso la Stazione Appaltante).","blocchetto",50,0,"zero/00",0]
["1.4","Contabilità di Stato","Multe Polizia Civile Copertina Azzurra Copertina posteriore ripiegata all’interno quantità interna n. 10x4 fogli in carta chimica colore giallo, azzurro, verde, bianco, più foglio bianco (carta non chimica) in unica copia a fine blocchetto; numerazione esterna e numerazione interna saranno comunicate dall’ufficio richiedente al momento della messa in stampa (come da campione disponibile e visionabile presso la Stazione Appaltante).","blocchetto",200,0,"zero/00",0]
["1.5","Contabilità di Stato","Multe Guardia di Rocca Copertina est. gialla - carta chimica,   Copertina post. ripiegata all’interno quantità interna n. 10x4 fogli in carta chimica colore giallo, azzurro, verde, bianco più foglio bianco (carta non chimica) in unica copia a fine blocchetto;  numerazione esterna e numerazione interna saranno comunicate dall’ufficio richiedente al momento della messa in stampa  (come da campione  disponibile e visionabile presso la Stazione Appaltante).","blocchetto",50,0,"zero/00",0]
["1.6","Contabilità di Stato","Quietanze “generiche” Copertina esterna Rosa Copertina posteriore ripiegata all’interno quantità interna n. 25x3 fogli in carta chimica colore bianco, verde, giallo.  Numerazione esterna e numerazione interna saranno comunicate dall’ufficio richiedente al momento della messa in stampa (come da campione disponibile e visionabile presso la Stazione Appaltante).","blocchetto",100,0,"zero/00",0]
["1.7","Contabilità di Stato","Quietanze Foto Riproduzioni copertina esterna rosa Copertina posteriore ripiegata all’interno quantità interna n. 25x3 fogli in carta chimica numerazione esterna e numerazione interna saranno comunicate dall’ufficio richiedente al momento della messa in stampa (come da campione disponibile e visionabile presso la Stazione Appaltante).","blocchetto",50,0,"zero/00",0]
["1.8","Contabilità di Stato","Quietanze “Caccia” copertina esterna grigia Copertina posteriore ripiegata all’interno quantità interna n. 25x4 fogli in carta chimica numerazione esterna e numerazione interna saranno comunicate dall’ufficio richiedente al momento della messa in stampa (come da campione disponibile e visionabile presso la Stazione Appaltante). ","blocchetto",80,0,"zero/00",0]
["1.9","Guardia di Rocca - Nucleo Uniformato Comando Centrale","Moduli in carta chimica in n.2 copie (1° foglio bianco, 2° foglio verde); formato cm.29,7x21; stampa solo fronte ad un colore; fascicolati singolarmente (come da campione disponibile e visionabile presso la Stazione Appaltante). Si precisa che la stampa dei moduli in oggetto dovrà essere approvata dal Comando Guardia di Rocca prima della sua realizzazione.","modulo",5000,0,"zero/00",0]
["1.10","Segreteria di Stato Territorio","Cartellina in cartoncino color bianco con n.3 alette, formato chiuso, come segue: (nuovo stemma) Repubblica di San Marino con intestazione \"REPUBBLICA DI SAN MARINO SEGRETERIA DI STATO PER IL TERRITORIO, L'AMBIENTE  E L'AGRICOLTURA\"; (tipo carta, colore, grammatura e manifattura come da campione disponibile e visionabile presso la  Stazione Appaltante).","cartella",800,0,"zero/00",0]
["1.11","Stato Civile","FOGLI PER ATTI di unione civile Parte I (come da campione disponibile e visionabile presso la Stazione Appaltante).","foglio",50,0,"zero/00",0]
["1.12","Stato Civile","FOGLI PER ATTI di pubblicazione delle unioni civili Parte I (come da campione disponibile e visionabile presso la Stazione Appaltante).","foglio",50,0,"zero/00",0]
["1.13","Stato Civile","SCHEDE MENSILI MARCATEMPO (cm. 10,5x22,5) da realizzare in cartoncino di colore bianco. Stampa su un lato (come da campione disponibile e visionabile presso la Stazione Appaltante).","scheda",150,0,"zero/00",0]
["1.14","Stato Civile","FOGLI A4 preforati tripartiti per stampa ricevute CARTE DI IDENTITA' (come da campione disponibile e visionabile presso la Stazione Appaltante), in foglio formato A4, carta uso mano gr. 90/m2.","foglio",9000,0,"zero/00",0]
["1.15","Stato Civile","Quietanze per cassa Stato Civile in foglio formato A4, carta uso mano gr. 90/m2, fogli preforati tripartiti, carta e grammatura come da campione.","foglio",5000,0,"zero/00",0]
["1.16","Ufficio Registro e Conservatoria","Quietanze per cassa in foglio formato A4 \"Uff.Registro e Conservatoria\", stampa 1 colore nero su carta uso mano gr. 90/m2, con numerazione progressiva dal n. xxxxx al numero xxxxxxxxx (da definire con l'ufficio richiedente) e perforazione a croce (come da campione disponibile e visionabile presso la Stazione Appaltante).","foglio",19000,0,"zero/00",0]
["1.17","Ufficio Tecnico del Catasto","NOTE DI VARIAZIONE in cartoncino bianco su n.4 facciate - dimensioni facciata cm.31,5x22,3 (come da campione disponibile e visionabile presso la sede della stazione appaltante).","foglio",3000,0,"zero/00",0]
["1.18","Ufficio Tecnico del Catasto","DOMANDE DI VOLTURA in cartoncino bianco su n.4 facciate - dimensioni facciata cm.31x22 (come da campione disponibile e visionabile presso la sede della stazione appaltante).","foglio",100,0,"zero/00",0]
["1.19","Ufficio Turismo","Form precompilati per richiesta abbonamento parcheggio. Fascicoli in carta chimica - doppia copia - primo foglio di colore giallo, secondo foglio sottostante di colore bianco; formato cm. 10,3x14 (come da campione disponibile e visionabile presso la Stazione Appaltante).","modulo",5000,0,{"$f":"valoreinlettere(F24)","v":"zero/00"},{"$f":"E24*F24","v":0}]
["1.20","Ufficio Turismo","Blocchetti contenenti n. 1x50 biglietti stampa fronte/retro con matrice pretagliata e numero progressivo, stampa in monocromia (nero) su fondo bianco; formato blocchetto cm. 6x14 con parte sottostante finita a cartoncino rigido e sopra in cartoncino di colore rosa; numerazione a partire dal numero 801 e il primo biglietto dovrà avere il n. 40.001 (come da campione disponibile e visionabile presso la Stazione Appaltante).","blocchetto",800,0,"zero/00",0]
["1.21","Ufficio Registro Automezzi e Trasporti","Carta di sicurezza \"Radiazione per immatricolazione all'estero, Certificato Storico\" - Carta formato A4 marca/tipo Navigator Universal gr.80 colore bianco -  stemma in rilievo  stampa a caldo in BLU -  Stampa a rilievo in calce: Repubblica di San Marino Ufficio Registro Automezzi e Trasporti - Stampa a lato dx in basso: “mod. C.C.” - numerazione progressiva da definire con l'ufficio richiedente. Si precisa che stemma, stampa a rilievo in calce, stampa , numerazione progressiva, colore, tipo carta e grammatura sono richiesti come da campione disponibile e visionabile presso la Stazione Appaltante.","foglio",24000,0,"zero/00",0]
["1.22","Ufficio Registro Automezzi e Trasporti","Quietanze per cassa in foglio formato A4, carta uso mano gr. 90/m2, perforazione a T nella parte inferiore (come da campione disponibile e visionabile presso la Stazione Appaltante). Si richiede la fornitura di moduli perfettamente piani su carta per stampanti laser.","foglio",27500,0,"zero/00",0]
["1.23","Ufficio Registro Automezzi e Trasporti","Patente internazionale 1968: libretto rilegato con copertina colore grigio con descrizioni, retro copertina colore grigio a due facce con descrizioni, pagine interne sfondo bianco stampate in più lingue, F.to chiuso cm. 15x10,5 tipo carta e grammatura richiesti come da campione disponibile e visionabile presso la Stazione Appaltante. ","patente",450,0,"zero/00",0]
["1.24","Ufficio Registro Automezzi e Trasporti","Carta intestata \"Permesso Provvisorio per Agenzie\" formato A4, gr. 80, intestata U.R.A.T., colore giallo, numerazione progressiva, 8 stemmi inchiostro IR invisibile all’occhio umano e sensibile a radiazioni IR (infra red), visibile solo con torcia dedicata, stampa a rilievo in calce: Repubblica di San Marino – Ufficio Registro Automezzi e Trasporti, numerazione progressiva (come da campione disponibile e visionabile presso la Stazione Appaltante).","foglio",14500,0,"zero/00",0]
["1.25","Ufficio Registro Automezzi e Trasporti","Cartella autoveicolo per uso speciale e per trasporti specifici AUTOCARRO/AUTOCARAVAN/TRATTORE STRADALE F.to chiuso cm. 26x35 2 colori con lembi (come da campione disponibile e visionabile presso la Stazione Appaltante).","cartella",300,0,"zero/00",0]
["1.26","Ufficio Registro Automezzi e Trasporti","Cartella Autovettura in cartoncino bianco con alette maggiorate, banda superiore di colore grigio, fronte/retro (come da campione disponibile e visionabile presso la Stazione Appaltante).","cartella",3500,0,"zero/00",0]
["1.27","Ufficio Registro Automezzi e Trasporti","Cartella Ciclomotore (come da campione).","cartella",200,0,{"$f":"valoreinlettere(F32)","v":"zero/00"},{"$f":"E32*F32","v":0}]
["1.28","Ufficio Registro Automezzi e Trasporti","Cartello “Esercitazione di guida” per moto in tessuto/non tessuto (come da campione disponibile e visionabile presso la Stazione Appaltante).","cartello",600,0,{"$f":"valoreinlettere(F33)","v":"zero/00"},{"$f":"E33*F33","v":0}]
["1.29","Ufficio Registro Automezzi e Trasporti","Cartella Motociclo/Motocarro (come da campione disponibile e visionabile presso la Stazione Appaltante).","cartella",500,0,"zero/00",0]
["1.30","Ufficio Registro Automezzi e Trasporti","Cartella Patenti (come da campione disponibile e visionabile presso la Stazione Appaltante).","cartella",1400,0,"zero/00",0]
["1.31","Ufficio Registro Automezzi e Trasporti","Patente internazionale Convenzione del 1949 (come da campione disponibile e visionabile presso la Stazione Appaltante).","patente",300,0,"zero/00",0]
["CIFRA BASE  >",null,15350.8,"SCONTO  >",null,{"$f":"1-H37/C37","v":1},"IMPORTO COMPLESSIVO NETTO DEL LOTTO  >",{"$f":"SUM(H6:H36)","v":0}]
[]
["Io sottoscritto _____________________________________________________ in qualità di legale rappresentante ovvero persona munita di idonea procura (già allegata alla dichiarazione di cui all'Allegato B)"]
[null,"(nome e cognome in stampatello)"]
[]
["sottoscrivo il presente listino prezzi in calce ad ogni sua pagina."]

{"sheet":"LOTTO N. 2","index":1,"n_rows":12,"n_cols":8,"rows_kept":12,"cut":false,"hidden":false,"merged":[[9,1,9,2],[0,0,0,7],[2,0,2,7],[3,0,3,7],[6,0,6,1],[6,3,6,4]]}
["ALLEGATO C1"]
[]
["OFFERTA ECONOMICA RELATIVA ALL’ASTA PUBBLICA PER LA FORNITURA DI STAMPATI PER GLI UFFICI DELLA PUBBLICA AMMINISTRAZIONE"]
["LOTTO 2  -  BOLLINI E SIGLE"]
["COD.","U.O.","DESCRIZIONE","U.M.","Q.TA'\nTOTALE","PREZZO UNITARIO NETTO IN CIFRE","PREZZO UNITARIO NETTO IN LETTERE","IMPORTO\nCOMPLESSIVO\nIN CIFRE"]
["2.1","Ufficio Registro Automezzi e Trasporti","Sigla internazionale “RSM” autoadesiva per applicazione su veicoli. Supporto: adesivo bianco lucido. Marca e tipo: MACTAC mod. Macscreen 8129 bianco brillante. Dimensioni: ovale di cm. 17,50x11,50 lettere RSM nere di spessore cm. 1, bordo nero di mm. 2, scritte in basso con modifica denominazione ufficio, suddivisa in pacchi da n.100 sigle (come da campione disponibile e visionabile presso la Stazione Appaltante).","Bollino",3500,0,{"$f":"valoreinlettere(F6)","v":"zero/00"},{"$f":"E6*F6","v":0}]
["CIFRA BASE  >",null,1010,"SCONTO  >",null,{"$f":"1-H7/C7","v":1},"IMPORTO COMPLESSIVO NETTO DEL LOTTO  >",{"$f":"SUM(H6:H6)","v":0}]
[]
["Io sottoscritto _____________________________________________________ in qualità di legale rappresentante ovvero persona munita di idonea procura (già allegata alla dichiarazione di cui all'Allegato B)"]
[null,"(nome e cognome in stampatello)"]
[]
["sottoscrivo il presente listino prezzi in calce ad ogni sua pagina."]

{"sheet":"LOTTO N. 3","index":2,"n_rows":12,"n_cols":8,"rows_kept":12,"cut":false,"hidden":false,"merged":[[9,1,9,2],[0,0,0,7],[2,0,2,7],[3,0,3,7],[6,0,6,1],[6,3,6,4]]}
["ALLEGATO C1"]
[]
["OFFERTA ECONOMICA RELATIVA ALL’ASTA PUBBLICA PER LA FORNITURA DI STAMPATI PER GLI UFFICI DELLA PUBBLICA AMMINISTRAZIONE"]
["LOTTO 3  -  ADESIVI DI SICUREZZA"]
["COD.","U.O.","DESCRIZIONE","U.M.","Q.TA'\nTOTALE","PREZZO UNITARIO NETTO IN CIFRE","PREZZO UNITARIO NETTO IN LETTERE","IMPORTO\nCOMPLESSIVO\nIN CIFRE"]
["3.1","Ufficio Registro Automezzi e Trasporti","Adesivo di sicurezza per certificato revisioni veicoli: sigillo anticontraffazione da applicare sui certificati di revisione veicoli. Caratteristiche: materiale (Confirm Original) trasparente con micro tagli che rendono l’adesivo fragile nel tentativo d’asportazione; collante particolare che in caso di tentativo di asportazione danneggia il supporto su cui è applicato; stampa di un retrologo non visibile ad occhio nudo ma con verificatore in dotazione anche alle forze dell’ordine; dimensioni cm. 26x72, base ultradistruttibile trasparente, con laminato di sicurezza 3M Confirm e retrologo Confirm trifoglio, bobina da n.1.000 etichette,  personalizzazione con la denominazione dell’ufficio  ricevente e numerazione progressiva da definire con l’ufficio richiedente (come da campione disponibile e visionabile presso la Stazione Appaltante).","Adesivo",19000,0,{"$f":"valoreinlettere(F6)","v":"zero/00"},{"$f":"E6*F6","v":0}]
["CIFRA BASE  >",null,9980,"SCONTO  >",null,{"$f":"1-H7/C7","v":1},"IMPORTO COMPLESSIVO NETTO DEL LOTTO  >",{"$f":"SUM(H6:H6)","v":0}]
[]
["Io sottoscritto _____________________________________________________ in qualità di legale rappresentante ovvero persona munita di idonea procura (già allegata alla dichiarazione di cui all'Allegato B)"]
[null,"(nome e cognome in stampatello)"]
[]
["sottoscrivo il presente listino prezzi in calce ad ogni sua pagina."]

{"sheet":"LOTTO N. 4","index":3,"n_rows":12,"n_cols":8,"rows_kept":12,"cut":false,"hidden":false,"merged":[[9,1,9,2],[0,0,0,7],[2,0,2,7],[3,0,3,7],[6,0,6,1],[6,3,6,4]]}
["ALLEGATO C1"]
[]
["OFFERTA ECONOMICA RELATIVA ALL’ASTA PUBBLICA PER LA FORNITURA DI STAMPATI PER GLI UFFICI DELLA PUBBLICA AMMINISTRAZIONE"]
["LOTTO 4  -  ETICHETTE ADESIVE"]
["COD.","U.O.","DESCRIZIONE","U.M.","Q.TA'\nTOTALE","PREZZO UNITARIO NETTO IN CIFRE","PREZZO UNITARIO NETTO IN LETTERE","IMPORTO\nCOMPLESSIVO\nIN CIFRE"]
["4.1","Ufficio Registro Automezzi e Trasporti","Adesivo per dorso scatole archivio: carta adesiva marca FASSON, tipo VELLUX 80 con adesivo supertack, stampa in colore blu, dimensioni cm. 8,5 x 38,8 (come da campione).","Adesivo",600,0,{"$f":"valoreinlettere(F6)","v":"zero/00"},{"$f":"E6*F6","v":0}]
["CIFRA BASE  >",null,280,"SCONTO  >",null,{"$f":"1-H7/C7","v":1},"IMPORTO COMPLESSIVO NETTO DEL LOTTO  >",{"$f":"SUM(H6:H6)","v":0}]
[]
["Io sottoscritto _____________________________________________________ in qualità di legale rappresentante ovvero persona munita di idonea procura (già allegata alla dichiarazione di cui all'Allegato B)"]
[null,"(nome e cognome in stampatello)"]
[]
["sottoscrivo il presente listino prezzi in calce ad ogni sua pagina."]

{"sheet":"LOTTO N. 5","index":4,"n_rows":12,"n_cols":8,"rows_kept":12,"cut":false,"hidden":false,"merged":[[9,1,9,2],[0,0,0,7],[2,0,2,7],[3,0,3,7],[6,0,6,1],[6,3,6,4]]}
["ALLEGATO C1"]
[]
["OFFERTA ECONOMICA RELATIVA ALL’ASTA PUBBLICA PER LA FORNITURA DI STAMPATI PER GLI UFFICI DELLA PUBBLICA AMMINISTRAZIONE"]
["LOTTO 5  -  CONTRASSEGNI"]
["COD.","U.O.","DESCRIZIONE","U.M.","Q.TA'\nTOTALE","PREZZO UNITARIO NETTO IN CIFRE","PREZZO UNITARIO NETTO IN LETTERE","IMPORTO\nCOMPLESSIVO\nIN CIFRE"]
["5.1","Comando Polizia Civile","Contrassegno per i residenti di tipo “autorizzazione per il transito e sosta nel centro storico di San Marino” anno 2021. Primo numero progressivo 001. Materiale PVC calandrato più plastificazione, spessore mc.0,5, retrostampato laminato con poliestere bianco e fondo argento anticontraffazione. Colori da definire con l'Ufficio richiedente. Il contrassegno dovrà essere realizzato sulla base di campione disponibile e visionabile presso la Stazione Appaltante. ","Contrassegno",150,0,{"$f":"valoreinlettere(F6)","v":"zero/00"},{"$f":"E6*F6","v":0}]
["CIFRA BASE  >",null,90,"SCONTO  >",null,{"$f":"1-H7/C7","v":1},"IMPORTO COMPLESSIVO NETTO DEL LOTTO  >",{"$f":"SUM(H6:H6)","v":0}]
[]
["Io sottoscritto _____________________________________________________ in qualità di legale rappresentante ovvero persona munita di idonea procura (già allegata alla dichiarazione di cui all'Allegato B)"]
[null,"(nome e cognome in stampatello)"]
[]
["sottoscrivo il presente listino prezzi in calce ad ogni sua pagina."]

{"sheet":"LOTTO N. 6","index":5,"n_rows":15,"n_cols":8,"rows_kept":15,"cut":false,"hidden":false,"merged":[[12,1,12,2],[0,0,0,7],[2,0,2,7],[3,0,3,7],[9,0,9,1],[9,3,9,4]]}
["ALLEGATO C1"]
[]
["OFFERTA ECONOMICA RELATIVA ALL’ASTA PUBBLICA PER LA FORNITURA DI STAMPATI PER GLI UFFICI DELLA PUBBLICA AMMINISTRAZIONE"]
["LOTTO 6  -  MODULI CONTINUI"]
["COD.","U.O.","DESCRIZIONE","U.M.","Q.TA'\nTOTALE","PREZZO UNITARIO NETTO IN CIFRE","PREZZO UNITARIO NETTO IN LETTERE","IMPORTO\nCOMPLESSIVO\nIN CIFRE"]
["6.1","Stato Civile, Servizi Demografici ed Elettorali","Carta bianca 240 mm., 11 pollici, 60 g/mq., modulo continuo, fori staccabili in scatole da n.2.000 fogli (come da campione disponibile e visionabile presso la Stazione Appaltante).","scatola/pacco",2,0,{"$f":"valoreinlettere(F6)","v":"zero/00"},{"$f":"E6*F6","v":0}]
["6.2","Stato Civile, Servizi Demografici ed Elettorali","Carta lettura facilitata 375 mm., 11 pollici, fori fissi in scatole da n.2.000 fogli (come da campione disponibile e visionabile presso la Stazione Appaltante).","scatola/pacco",1,0,{"$f":"valoreinlettere(F7)","v":"zero/00"},0]
["6.3","Stato Civile, Servizi Demografici ed Elettorali","Fogli di Famiglia, modulo continuo a fori staccabili (come da campione disponibile e visionabile presso la Stazione Appaltante).","modulo",1000,0,"zero/00",{"$f":"E8*F8","v":0}]
["6.4","Ufficio Tributario","Moduli continui NOTA DI CONSEGNA in carta chimica, tre copie colore bianco dimensioni 24,2x28, stampa monocromatica, numerazione da 1 a 60.000 in rosso(come da campione disponibile e visionabile presso la Stazione Appaltante).","Modulo",54500,0,"zero/00",{"$f":"E9*F9","v":0}]
["CIFRA BASE  >",null,3125.2,"SCONTO  >",null,{"$f":"1-H10/C10","v":1},"IMPORTO COMPLESSIVO NETTO DEL LOTTO  >",{"$f":"SUM(H6:H9)","v":0}]
[]
["Io sottoscritto _____________________________________________________ in qualità di legale rappresentante ovvero persona munita di idonea procura (già allegata alla dichiarazione di cui all'Allegato B)"]
[null,"(nome e cognome in stampatello)"]
[]
["sottoscrivo il presente listino prezzi in calce ad ogni sua pagina."]